Workbook

Sheet Sheet1
A1: MODEL | B1: N Cg | C1: N Cr east | D1: N Cr west | E1: N ancestor all | F1: N Cr ancestor | G1: MR01 | H1: MR10 | I1: MR12 | J1: MR21 | K1: Time Cr migration starts | L1: TimeCg2CrS | M1: TSplitew | N1: Tsplitspe | O1: TaG | P1: Parameters | Q1: MaxEstLhood | R1: AIC | S1: dAIC | T1: MaxObsLhood
A2: S | B2: 1269472 | C2: 81013 | D2: 23934 | M2: 7340 | N2: 120870 | P2: 5 | Q2: -412396.743 | R2: =2*P2 - 2 *(Q2/LOG10(2.718281828459)) -> 1899167.186 | S2: =R2-R9 -> 26181.5679 | T2: -403601.396
A3: G | B3: 2157471 | C3: 167597 | D3: 45132 | E3: 996822 | F3: 30189 | M3: 12706 | N3: 103967 | O3: 483486 | P3: 8 | Q3: -411056.531 | R3: 1893001.281 | S3: =R3-R9 -> 20015.66355
A4: GM2Cg | B4: 2006111 | C4: 167499 | D4: 37850 | E4: 955101 | F4: 45411 | G4: 7.48285e-07 | M4: 10997 | N4: 140498 | O4: 756038 | P4: 9 | Q4: -410607.071 | R4: 1890933.442 | S4: =R4-R9 -> 17947.82376
A5: M | B5: 1367231 | C5: 68580 | D5: 69367 | G5: 1.17615e-06 | H5: 1.11893e-06 | M5: 11037 | N5: 1914113 | P5: 7 | Q5: -408351.433 | R5: 1880541.845 | S5: =R5-R9 -> 7556.226894
A6: GM2Cr | B6: 1957372 | C6: 101757 | D6: 113932 | E6: 781530 | F6: 2840 | H6: 2.27109e-06 | M6: 9532 | N6: 72906 | O6: 1167588 | P6: 9 | Q6: -406964.835 | R6: 1874160.325 | S6: =R6-R9 -> 1174.707125
A7: CGM | B7: 1802583 | C7: 81048 | D7: 43930 | E7: 1046438 | F7: 6336 | G7: 6.3477e-07 | H7: 1.67095e-06 | I7: 4.07992e-05 | J7: 2.00244e-05 | K7: 747666 | M7: 1379249 | N7: 1580624 | O7: 1977266 | P7: 13 | Q7: -406866.931 | R7: 1873717.46 | S7: =R7-R9 -> 731.8425427
A8: GM | B8: 2069722 | C8: 136858 | D8: 86507 | E8: 858323 | F8: 270 | G8: 5.61265e-07 | H8: 1.51664e-06 | M8: 9996 | N8: 175142 | O8: 910896 | P8: 10 | Q8: -406738.061 | R8: 1873117.992 | S8: =R8-R9 -> 132.3742609
A9: MGS | B9: 1961948 | C9: 373579 | D9: 70285 | E9: 839171 | F9: 6 | G9: 5.02344e-07 | H9: 1.96949e-06 | L9: 10845 | M9: 10507 | N9: 171118 | O9: 1099193 | P9: 11 | Q9: -406708.882 | R9: 1872985.618 | S9: =R9-R9 -> 0
A10: Lower CI | B10: 1789842.925 | C10: 311352.55 | D10: 51324.95 | E10: 550250.825 | F10: 2 | G10: 4.33105775e-07 | H10: 1.45373825e-06 | L10: 8027.525 | M10: 7590.75 | N10: 167517.3 | O10: 729460.625
A11: Upper CI | B11: 1959827.325 | C11: 463630.975 | D11: 72942.85 | E11: 954127.35 | F11: 13.575 | G11: 5.714307e-07 | H11: 2.0333735e-06 | L11: 10627.9 | M11: 9695.65 | N11: 234488.925 | O11: 1856886.65
A12: Tested models as follows: S, a simple split of C. grandiflora from C. rubella followed by a split of C. rubella into two populations; G, the same as S, but allowing logistic growth in C. grandiflora starting before the split and a different growth rate for C. rubella after the species split; GM2Cg, the growth model but allowing migration from C. rubella to C. grandiflora; M, the simple model with bidirectional migration between species at independent rates; GM2Cr, the growth model but allowing migration to C. rubella from C. grandiflora; CGM; migration between species and growth with modern migration between C. rubella east and western populations; GM, bidirectional migration after speciation and growth; MGS, GM, but gene flow from C. grandiflora to C. rubella ceases before the split between the two C. rubella subpopulations.

Sheet Sheet2
A1: MODEL | B1: N Cg | C1: N Cr east | D1: N Cr west | E1: N ancestor all | F1: N Cr ancestor | G1: MR01 | H1: MR10 | I1: MR12 | J1: MR21 | K1: Time Cr migration starts | L1: Time to stop Cg to Cr migration | M1: Time Split East and West | N1: Time split Cg and Cr | O1: Time to start ancestral growth | P1: Parameters | Q1: MaxEstLhood | R1: AIC | S1: dAIC | T1: MaxObsLhood
A2: Simple | B2: 1269472 | C2: 81013 | D2: 23934 | M2: 7340 | N2: 120870 | P2: 5 | Q2: -412396.743 | R2: =2*P2 - 2 *(Q2/LOG10(2.718281828459)) -> 1899167.186 | S2: =R2-R9 -> 26181.5679 | T2: -403601.396
A3: Growth | B3: 2157471 | C3: 167597 | D3: 45132 | E3: 996822 | F3: 30189 | M3: 12706 | N3: 103967 | O3: 483486 | P3: 8 | Q3: -411056.531 | R3: 1893001.281 | S3: =R3-R9 -> 20015.66355 | T3: -403601.396
A4: Growth and migration from C. rubella | B4: 2006111 | C4: 167499 | D4: 37850 | E4: 955101 | F4: 45411 | G4: =0.000000748285 * B4 -> 1.50114277 | M4: 10997 | N4: 140498 | O4: 756038 | P4: 9 | Q4: -410607.071 | R4: 1890933.442 | S4: =R4-R9 -> 17947.82376 | T4: -403601.396
A5: Migration bidirectional | B5: 1367231 | C5: 68580 | D5: 69367 | G5: =B5 * 0.00000117615 -> 1.608068741 | H5: =C5 * 0.00000111893 -> 0.0767362194 | M5: 11037 | N5: 1914113 | P5: 7 | Q5: -408351.433 | R5: 1880541.845 | S5: =R5-R9 -> 7556.226894 | T5: -403601.396
A6: Growth and migration from C. granidflora | B6: 1957372 | C6: 101757 | D6: 113932 | E6: 781530 | F6: 2840 | H6: =C6 * 0.00000227109 -> 0.2310993051 | M6: 9532 | N6: 72906 | O6: 1167588 | P6: 9 | Q6: -406964.835 | R6: 1874160.325 | S6: =R6-R9 -> 1174.707125 | T6: -403601.396
A7: Complex migration and growth | B7: 1802583 | C7: 81048 | D7: 43930 | E7: 1046438 | F7: 6336 | G7: =B7 * 0.00000063477 -> 1.144225611 | H7: =C7 * 0.00000167095 -> 0.1354271556 | I7: =C7 * 0.0000407992 -> 3.306693562 | J7: =D7 * 0.0000200244 -> 0.879671892 | K7: 747666 | M7: 1379249 | N7: 1580624 | O7: 1977266 | P7: 13 | Q7: -406866.931 | R7: 1873717.46 | S7: =R7-R9 -> 731.8425427 | T7: -403601.396
A8: Migration and growth | B8: 2069722 | C8: 136858 | D8: 86507 | E8: 858323 | F8: 270 | G8: =B8 * 0.000000561265 -> 1.161662518 | H8: =C8 * 0.00000151664 -> 0.2075643171 | M8: 9996 | N8: 175142 | O8: 910896 | P8: 10 | Q8: -406738.061 | R8: 1873117.992 | S8: =R8-R9 -> 132.3742609 | T8: -403601.396
A9: Migration and growth, stop | B9: 1961948 | C9: 373579 | D9: 70285 | E9: 839171 | F9: 6 | G9: =B9 * 0.000000502344 -> 0.9855728061 | H9: =C9 * 0.00000196949 -> 0.7357601047 | L9: 10845 | M9: 10507 | N9: 171118 | O9: 1099193 | P9: 11 | Q9: -406708.882 | R9: 1872985.618 | S9: =R9-R9 -> 0 | T9: -403601.396
B10: 0.025 | C10: 1706541 | D10: 112786.7 | E10: 32212.8 | F10: 569786.7 | G10: 2 | H10: 6398.2 | I10: 4.343821e-07 | J10: 1.290008e-06 | K10: 6882.475 | L10: 165884.3 | M10: 734447 | N10: -409777.2 | O10: -404377.3
B11: 0.975 | C11: 1971032 | D11: 440861.1 | E11: 70962.87 | F11: 943415.3 | G11: 1321743 | H11: 11637.87 | I11: 1.007982e-06 | J11: 0.00141029 | K11: 277612.875 | L11: 1198146.6 | M11: 2001459 | N11: -402093 | O11: -400793
C13: NPOP0 | D13: NPOP1 | E13: NPOP2 | F13: NANC0 | G13: NANC1 | H13: TSPL1 | I13: MR01 | J13: MR10 | K13: TSTOP | L13: TSPL2 | M13: TSG | N13: MaxEstLhood | O13: MaxObsLhood
